fUSD/lending_fUSD_20260108
["ID","MTS","AMOUNT","RATE_DAILY","PERIOD"]
[400954133,1767870643490,-354.248635,0.00010581,2]
[400954140,1767870643545,-532.24049972,0.00010581,2]
[400954147,1767870643601,-118.85826384,0.00010581,2]
[400954149,1767870643616,-386.4059999,0.00010581,2]
[400954259,1767870644806,-1134.975,0.00010145,2]
[400954357,1767870645703,-3252.75000005,0.00010145,2]
[400954370,1767870645759,-5405.67108242,0.00010145,2]
[400954421,1767870646003,-508.31709661,0.00010145,2]
[400954423,1767870646014,-1170.64682092,0.00010145,2]
[400954425,1767870646023,-14459.74590622,0.00010581,2]
[400954858,1767870650330,-4358.51409532,0.00010581,2]
[400954868,1767870650412,-1282.98180936,0.00010581,2]
[400954886,1767870650571,-1217.01819064,0.00010581,2]
[400954891,1767870650611,-7565.97361872,0.00010681,2]
[400955535,1767870657515,-10000.01,0.00010681,2]
[400955557,1767870657718,-10000.01,0.00010681,2]
[400958168,1767870743491,-2428.5729,0.00010581,2]
[400958169,1767870743520,-293.46428555,0.00010628,2]
[400958170,1767870743845,-200.0,0.00010675,2]
[400958171,1767870743874,-200.0,0.00010675,2]
[400958172,1767870743901,-199.45041499,0.00010675,2]
[400958173,1767870743928,-200.0,0.00010675,2]
[400958174,1767870743956,-500.0,0.00010675,2]
[400958175,1767870743983,-300.0,0.0001068,2]
[400958176,1767870744011,-300.0,0.0001068,2]
[400958177,1767870744039,-150.0,0.0001068,2]
[400958178,1767870744070,-157.03479892,0.0001068,2]
[400958179,1767870744223,-151.0,0.00010675,2]
[400958180,1767870744251,-142.96520108,0.0001068,2]
[400958181,1767870744520,-142.96520108,0.00010681,2]
[400958182,1767870744548,-151.0,0.00010675,2]
[400958183,1767870744558,-9261.07959784,0.00010681,2]
[400958184,1767870744658,-10000.01,0.00010681,2]
[400958185,1767870744735,-10000.01,0.00010681,2]
[400958186,1767870744838,-10000.01,0.00010681,2]
[400958187,1767870751465,-151.0,0.00010675,2]
[400958188,1767870751495,-151.0,0.00010675,2]
[400958189,1767870751524,-151.0,0.00010675,2]
[400958190,1767870751553,-151.0,0.00010675,2]
[400958191,1767870751585,-151.0,0.00010675,2]
[400958192,1767870751616,-151.0,0.00010675,2]
[400958193,1767870751644,-151.0,0.00010675,2]
[400958194,1767870751672,-151.0,0.00010675,2]
[400958195,1767870751700,-151.0,0.00010675,2]
[400958196,1767870751729,-151.0,0.00010675,2]
[400958197,1767870751756,-151.0,0.00010675,2]
[400958198,1767870751982,-6678.01,0.00010681,2]
[400958199,1767870752051,-151.0,0.00010675,2]
[400958200,1767870752133,-9698.01,0.00010681,2]
[400958212,1767870763643,-151.0,0.00010675,2]
[400958213,1767870763673,-151.0,0.00010675,2]
[400958214,1767870763704,-151.0,0.00010675,2]
[400958215,1767870763735,-151.0,0.00010675,2]
[400958216,1767870763763,-151.0,0.00010675,2]
[400958217,1767870763798,-151.0,0.00010675,2]
[400958218,1767870763826,-151.0,0.00010675,2]
[400958219,1767870763855,-151.0,0.00010675,2]
[400958220,1767870763884,-151.0,0.00010675,2]
[400958221,1767870763914,-151.0,0.00010675,2]
[400958222,1767870763942,-151.0,0.00010675,2]
[400958223,1767870763971,-151.0,0.00010675,2]
[400958224,1767870764000,-151.0,0.00010675,2]
[400958225,1767870764028,-151.0,0.00010675,2]
[400958226,1767870764058,-151.0,0.00010675,2]
[400958227,1767870764090,-151.0,0.00010675,2]
[400958228,1767870764121,-151.0,0.00010675,2]
[400958229,1767870764154,-500.0,0.0001068,2]
[400958230,1767870764190,-500.0,0.0001068,2]
[400958231,1767870764223,-500.0,0.0001068,2]
[400958232,1767870764256,-500.0,0.0001068,2]
[400958233,1767870764288,-366.01,0.0001068,2]
[400958234,1767870764790,-133.99,0.0001068,2]
[400958235,1767870769883,-500.0,0.0001068,2]
[400958236,1767870769915,-500.0,0.0001068,2]
[400958237,1767870769947,-500.0,0.0001068,2]
[400958238,1767870769978,-500.0,0.0001068,2]
[400958239,1767870770011,-500.0,0.0001068,2]
[400958240,1767870770041,-500.0,0.0001068,2]
[400958241,1767870770076,-500.0,0.0001068,2]
[400958242,1767870770110,-500.0,0.0001068,2]
[400958243,1767870770142,-500.0,0.0001068,2]
[400958244,1767870770174,-500.0,0.0001068,2]
[400958245,1767870771259,-0.01,0.0001068,2]
[400958246,1767870772443,-499.99,0.0001068,2]
[400958247,1767870772474,-500.0,0.0001068,2]
[400958248,1767870772505,-500.0,0.0001068,2]
[400958249,1767870772536,-500.0,0.0001068,2]
[400958250,1767870772568,-500.0,0.0001068,2]
[400958251,1767870772598,-500.0,0.0001068,2]
[400958252,1767870772630,-500.0,0.0001068,2]
[400958253,1767870772660,-500.0,0.0001068,2]
[400958254,1767870772689,-500.0,0.0001068,2]
[400958255,1767870772718,-500.0,0.0001068,2]
[400958256,1767870772909,-0.03,0.0001068,2]
[400958257,1767870778344,-499.97,0.0001068,2]
[400958258,1767870778374,-500.0,0.0001068,2]
[400958259,1767870778405,-500.0,0.0001068,2]
[400958260,1767870778440,-500.0,0.0001068,2]
[400958261,1767870778468,-500.0,0.0001068,2]
[400958262,1767870778499,-433.06334525,0.0001068,2]
[400958263,1767870778529,-500.0,0.0001068,2]
[400958264,1767870778558,-500.0,0.0001068,2]
[400958265,1767870778588,-500.0,0.0001068,2]
[400958266,1767870778618,-500.0,0.0001068,2]
[400958267,1767870778798,-133.9433095,0.0001068,2]
[400958268,1767870782402,-300.0,0.00010679,2]
[400958269,1767870782435,-366.0566905,0.0001068,2]
[400958270,1767870782465,-500.0,0.0001068,2]
[400958271,1767870782498,-500.0,0.0001068,2]
[400958272,1767870782528,-500.0,0.0001068,2]
[400958273,1767870782558,-500.0,0.0001068,2]
[400958274,1767870782590,-500.0,0.0001068,2]
[400958275,1767870782621,-500.0,0.0001068,2]
[400958276,1767870782653,-500.0,0.0001068,2]
[400958277,1767870782683,-500.0,0.0001068,2]
[400958278,1767870782712,-167.896619,0.0001068,2]
[400958279,1767870782895,-332.103381,0.0001068,2]
[400958280,1767870782925,-500.0,0.0001068,2]
[400958281,1767870782955,-500.0,0.0001068,2]
[400958282,1767870783147,-332.103381,0.00010681,2]
[400958283,1767870783164,-7335.803238,0.00010681,2]
[400958284,1767870783188,-10000.01,0.00010681,2]
[400958285,1767870783214,-10000.01,0.00010681,2]
[400958286,1767870783283,-10000.01,0.00010681,2]
[400958287,1767870788626,-815.686,0.00010581,2]
[400958288,1767870788681,-8368.638,0.00010681,2]
[400958289,1767870795237,-501.564,0.00010581,2]
[400958290,1767870795267,-8996.882,0.00010581,2]
[400958291,1767870795435,-300.0,0.00010631,2]
[400958292,1767870795465,-1200.0,0.0001068,2]
[400958293,1767870795498,-909.62362989,0.0001068,2]
[400958294,1767870795531,-909.62362989,0.0001068,2]
[400958295,1767870795566,-909.62362989,0.0001068,2]
[400958296,1767870795602,-632.64459077,0.0001068,2]
[400958297,1767870795802,-276.97903912,0.0001068,2]
[400958298,1767870796397,-909.62362989,0.0001068,2]
[400958299,1767870796443,-909.62362989,0.0001068,2]
[400958300,1767870796477,-909.62362989,0.0001068,2]
[400958301,1767870796513,-909.62362989,0.0001068,2]
[400958302,1767870796546,-909.62362989,0.0001068,2]
[400958303,1767870796671,-903.7737011,0.0001068,2]
[400958304,1767870796732,-5.84992879,0.0001068,2]
[400958305,1767870796767,-909.62362989,0.0001068,2]
[400958306,1767870796800,-909.62362989,0.0001068,2]
[400958307,1767870796832,-909.62362989,0.0001068,2]
[400958308,1767870796867,-909.62362989,0.0001068,2]
[400958309,1767870796899,-909.62362989,0.0001068,2]
[400958310,1767870797030,-892.07384352,0.0001068,2]
[400958312,1767870807884,-2500.0,0.00010581,2]
[400958313,1767870807916,-17.54978637,0.0001068,2]
[400958314,1767870807945,-909.62362989,0.0001068,2]
[400958315,1767870807973,-909.62362989,0.0001068,2]
[400958316,1767870808072,-1326.4159077,0.00010681,2]
[400958317,1767870808161,-10000.01,0.00010681,2]
[400958318,1767870815930,-10000.01,0.00010681,2]
[400958319,1767870816047,-10000.01,0.00010681,2]
[400958320,1767870820290,-10000.01,0.00010681,2]
[400958321,1767870822198,-10000.01,0.00010681,2]
[400958322,1767870822317,-10000.01,0.00010681,2]
[400958323,1767870826479,-10000.01,0.00010681,2]
[400958324,1767870832993,-1100.0,0.00010032,2]
[400958325,1767870833392,-1100.0,0.00010303,2]
[400958326,1767870833492,-5600.01,0.00010681,2]
[400958327,1767870833514,-10000.01,0.00010681,2]
[400958329,1767870837611,-10000.01,0.00010681,2]
[400958331,1767870837876,-1100.0,0.00010032,2]
[400958332,1767870837909,-7800.01,0.00010681,2]
[400958334,1767870838235,-10000.01,0.00010681,2]
[400958335,1767870838360,-10000.01,0.00010681,2]
[400958337,1767870838490,-10000.01,0.00010681,2]
[400958338,1767870838616,-4572.27644371,0.00010681,2]
[400958339,1767870838644,-300.0,0.00010709,2]
[400958340,1767870838691,-255.45711258,0.00010781,2]
[400958342,1767870838978,-439.22312737,0.00010781,2]
[400958343,1767870839103,-9121.56374526,0.00010782,2]
[400958347,1767870844750,-300.0,0.00010781,2]
[400958348,1767870844780,-300.0,0.00010782,2]
[400958349,1767870844833,-8800.01,0.00010782,2]
[400958350,1767870851683,-1000.0,0.00010781,2]
[400958351,1767870851793,-8000.01,0.00010782,2]
[400958352,1767870851907,-10000.01,0.00010782,2]
[400958353,1767870852203,-10000.01,0.00010782,2]
[400958354,1767870852475,-10000.01,0.00010782,2]
[400958355,1767870852733,-10000.01,0.00010782,2]
[400958356,1767870852986,-10000.01,0.00010782,2]
[400958357,1767870853182,-10000.01,0.00010782,2]
[400958358,1767870863957,-150.0,0.0001068,2]
[400958359,1767870863999,-170.71674698,0.0001068,2]
[400958360,1767870864082,-9358.57650604,0.00010782,2]
[400958361,1767870864245,-10000.01,0.00010782,2]
[400958362,1767870881715,-1000.04055834,0.00010225,2]
[400958363,1767870883876,-1219.52379571,0.00010225,2]
[400958364,1767870885664,-1476.78564595,0.00010225,2]
[400958365,1767870885695,-603.2401752,0.0001068,2]
[400958366,1767870885774,-5839.9583577,0.00010782,2]
[400958367,1767870885881,-10000.01,0.00010782,2]
[400958368,1767870886168,-10000.01,0.00010782,2]
[400958369,1767870886279,-10000.01,0.00010782,2]
[400958370,1767870886409,-10000.01,0.00010782,2]
[400958374,1767870924385,-300.0,0.0001058,2]
[400958375,1767870924414,-300.0,0.00010581,2]
[400958376,1767870924467,-8800.01,0.00010581,2]
[400958377,1767870933593,-10000.01,0.00010581,2]
[400958378,1767870971670,-162.68115368,0.00010217,2]
[400958379,1767870974446,-250.0,0.00010217,2]
[400958380,1767870976377,-203.86,0.00010217,2]
[400958381,1767870978367,-320.29133073,0.00010217,2]
[400958406,1767871034293,-63.16751559,0.00010217,2]
[400958407,1767871034322,-472.34203533,0.00010481,2]
[400958408,1767871034350,-176.519017,0.00010578,2]
[400958409,1767871034376,-500.0,0.0001058,2]
[400958410,1767871034404,-500.0,0.0001058,2]
[400958411,1767871034432,-500.0,0.0001058,2]
[400958412,1767871034462,-504.02237282,0.0001058,2]
[400958413,1767871034490,-222.66915253,0.0001058,2]
[400958414,1767871034680,-4122.56981346,0.00010581,2]
[400958415,1767871036103,18294.87,0.00010007,2]
[400958416,1767871049596,-247.41016948,0.0001058,2]
[400958417,1767871049636,-9505.18966104,0.00010581,2]
[400958418,1767871100570,-10000.01,0.0001002,2]
[400958419,1767871100802,-10000.01,0.0001002,2]
[400958420,1767871100951,-10000.01,0.0001002,2]
[400958421,1767871101063,-10000.01,0.0001002,2]
[400958422,1767871101236,-10000.01,0.0001002,2]
[400958423,1767871101380,-10000.01,0.0001002,2]
[400958424,1767871101626,-10000.01,0.0001002,2]
[400958425,1767871101721,-10000.01,0.0001002,2]
[400958426,1767871101753,-279.70866927,0.0001002,2]
[400958427,1767871103227,-167.07827963,0.0001002,2]
[400958428,1767871105183,-255.04792585,0.0001002,2]
[400958429,1767871108142,-175.88721697,0.0001002,2]
[400958430,1767871111785,-237.23316124,0.0001002,2]
[400958431,1767871115181,-300.01703537,0.0001002,2]
[400958432,1767871116557,-319.82522726,0.0001002,2]
[400958433,1767871116593,-10000.01,0.0001002,2]
[400958434,1767871116711,-10000.01,0.0001002,2]
[400958435,1767871116828,-10000.01,0.0001002,2]
[400958436,1767871118533,-541.1955794,0.0001002,2]
[400958437,1767871120557,-250.0,0.0001002,2]
[400958438,1767871122510,-255.0,0.0001002,2]
[400958439,1767871124292,-378.39288395,0.0001002,2]
[400958440,1767871129215,-192.68153665,0.0001002,2]
[400958441,1767871132381,-153.891643,0.0001002,2]
[400958442,1767871133954,-161.39838316,0.0001002,2]
[400958443,1767871136646,-229.16887849,0.0001002,2]
[400958444,1767871139792,-472.05847415,0.0001002,2]
[400958445,1767871141821,-189.3168,0.0001002,2]
[400958446,1767871143338,-243.14365421,0.0001002,2]
[400958447,1767871144006,1192.31,9.942e-05,2]
[400958448,1767871144823,-448.55216699,0.0001002,2]
[400958449,1767871146289,-702.63767819,0.0001002,2]
[400958450,1767871148400,-174.29552926,0.0001002,2]
[400958451,1767871151064,-188.76767996,0.0001002,2]
[400958452,1767871155373,-346.85033818,0.0001002,2]
[400958453,1767871158541,-166.24661828,0.0001002,2]
[400958454,1767871161325,-173.21574077,0.0001002,2]
[400958455,1767871163231,-240.32618978,0.0001002,2]
[400958456,1767871168256,-183.94017844,0.0001002,2]
[400958457,1767871207346,4814.83,9.926e-05,2]
[400958458,1767871208179,-232.0,0.0001002,2]
[400958459,1767871208201,-368.7166786,0.0001002,2]
[400958461,1767871214074,2419.22,9.924e-05,2]
[400958462,1767871227776,-252.16866732,0.00010019,2]
[400958463,1767871230644,-247.83133268,0.00010019,2]
[400958464,1767871230677,-52.16866732,0.00010019,2]
[400958465,1767871233187,-447.83133268,0.00010019,2]
[400958466,1767871233213,-61.36394466,0.00010019,2]
[400958467,1767871235698,-224.74559645,0.00010019,2]
[400958468,1767871236753,-213.89045889,0.00010019,2]
[400958469,1767871236789,-500.0,0.00010019,2]
[400958470,1767871236823,-500.0,0.00010019,2]
[400958471,1767871236857,-500.0,0.00010019,2]
[400958472,1767871236890,-500.0,0.00010019,2]
[400958473,1767871236927,-500.0,0.00010019,2]
[400958474,1767871236960,-500.0,0.00010019,2]
[400958475,1767871236995,-500.0,0.00010019,2]
[400958476,1767871237030,-329.52015296,0.00010019,2]
[400958477,1767871237063,-500.0,0.00010019,2]
[400958478,1767871237095,-413.1887763,0.00010019,2]
[400958479,1767871237470,-86.8112237,0.00010019,2]
[400958480,1767871237506,-500.0,0.00010019,2]
[400958481,1767871237542,-500.0,0.00010019,2]
[400958482,1767871237578,-500.0,0.00010019,2]
[400958483,1767871237613,-500.0,0.00010019,2]
[400958484,1767871237648,-500.0,0.00010019,2]
[400958485,1767871237688,-500.0,0.00010019,2]
[400958486,1767871237723,-500.0,0.00010019,2]
[400958487,1767871237758,-500.0,0.00010019,2]
[400958488,1767871237792,-500.0,0.00010019,2]
[400958489,1767871237825,-326.3875526,0.00010019,2]
[400958490,1767871237938,-173.6124474,0.00010019,2]
[400958491,1767871238051,-500.0,0.00010019,2]
[400958492,1767871238088,-500.0,0.00010019,2]
[400958493,1767871238121,-500.0,0.00010019,2]
[400958494,1767871238156,-500.0,0.00010019,2]
[400958495,1767871238193,-500.0,0.00010019,2]
[400958496,1767871238228,-500.0,0.00010019,2]
[400958497,1767871238261,-500.0,0.00010019,2]
[400958498,1767871238300,-500.0,0.00010019,2]
[400958499,1767871238331,-191.76481661,0.00010019,2]
[400958500,1767871238366,-605.48610824,0.00010019,2]
[400958501,1767871239115,-58.2832555,0.00010019,2]
[400958502,1767871239125,-260.4236711,0.00010019,2]
[400958503,1767871239160,-403.34569264,0.00010019,2]
[400958504,1767871239194,-236.18574237,0.00010019,2]
[400958505,1767871240240,-427.58362137,0.00010019,2]
[400958506,1767871240273,-663.76936374,0.00010019,2]
[400958507,1767871240307,-663.76936374,0.00010019,2]
[400958508,1767871240339,-663.76936374,0.00010019,2]
[400958509,1767871240370,-663.76936374,0.00010019,2]
[400958510,1767871240401,-663.76936374,0.00010019,2]
[400958511,1767871240438,-663.76936374,0.00010019,2]
[400958512,1767871240469,-515.84102864,0.00010019,2]
[400958513,1767871240631,-147.9283351,0.00010019,2]
[400958514,1767871240658,-44.91011644,0.00010019,2]
[400958515,1767871240746,-147.9283351,0.00010019,2]
[400958516,1767871243428,-260.154517,0.00010019,2]
[400958517,1767871243617,-210.7763952,0.00010019,2]
[400958518,1767871243652,-663.76936374,0.00010019,2]
[400958519,1767871243690,-663.76936374,0.00010019,2]
[400958520,1767871243722,-663.76936374,0.00010019,2]
[400958521,1767871243754,-663.76936374,0.00010019,2]
[400958522,1767871243787,-663.76936374,0.00010019,2]
[400958523,1767871243819,-663.76936374,0.00010019,2]
[400958524,1767871243851,-663.76936374,0.00010019,2]
[400958525,1767871244059,-285.68611724,0.00010019,2]
[400958526,1767871246274,-300.0,0.00010019,2]
[400958527,1767871246523,-78.0832465,0.00010019,2]
[400958528,1767871246557,-663.76936374,0.00010019,2]
[400958529,1767871246590,-663.76936374,0.00010019,2]
[400958530,1767871246623,-663.76936374,0.00010019,2]
[400958531,1767871246659,-663.76936374,0.00010019,2]
[400958532,1767871246696,-663.76936374,0.00010019,2]
[400958533,1767871246730,-663.76936374,0.00010019,2]
[400958534,1767871246763,-663.76936374,0.00010019,2]
[400958535,1767871246901,-663.76936374,0.00010019,2]
[400958536,1767871246934,-663.76936374,0.00010019,2]
[400958537,1767871246966,-663.76936374,0.00010019,2]
[400958538,1767871246998,-663.76936374,0.00010019,2]
[400958539,1767871247030,-663.76936374,0.00010019,2]
[400958540,1767871247063,-663.76936374,0.00010019,2]
[400958541,1767871247095,-663.76936374,0.00010019,2]
[400958542,1767871247541,-43.4695439,0.00010019,2]
[400958543,1767871247785,-507.60287074,0.00010019,2]
[400958544,1767871247804,-112.6969491,0.00010019,2]
[400958545,1767871247814,-551.07241464,0.00010019,2]
[400958546,1767871249630,-112.6969491,0.00010019,2]
[400958547,1767871249664,-663.76936374,0.00010019,2]
[400958548,1767871249698,-663.76936374,0.00010019,2]
[400958549,1767871249730,-663.76936374,0.00010019,2]
[400958550,1767871249764,-663.76936374,0.00010019,2]
[400958551,1767871249797,-663.76936374,0.00010019,2]
[400958552,1767871249826,-193.19585295,0.0001002,2]
[400958553,1767871249855,-169.458256,0.00010578,2]
[400958554,1767871249884,-300.0,0.00010579,2]
[400958555,1767871249914,-611.6142465,0.00010579,2]
[400958556,1767871250099,-588.3857535,0.00010579,2]
[400958557,1767871263156,164.07,8.007e-05,2]
[400958558,1767871288339,-210.37379269,0.00010019,2]
[400958559,1767871301655,-183.89967979,0.00010019,2]
[400958560,1767871305982,-453.73164159,0.00010019,2]
[400958561,1767871307946,-232.99070687,0.00010019,2]
[400958562,1767871307976,-83.10961334,0.00010019,2]
[400958563,1767871310561,-517.16043577,0.00010019,2]
[400958564,1767871313372,-282.82985658,0.00010019,2]
[400958565,1767871316628,-197.89591525,0.00010019,2]
[400958566,1767871316653,-201.71237834,0.00010019,2]
[400958567,1767871318658,-307.92597978,0.00010019,2]
[400958568,1767871321215,-218.4146248,0.00010019,2]
[400958569,1767871322726,-300.0,0.00010018,2]
[400958570,1767871322756,-150.08356838,0.00010019,2]
[400958574,1767871385359,3962.0,0.000149,3]
[400958577,1767871422444,-156.42979489,0.00010059,2]
[400958578,1767871425406,-199.80783017,0.00010059,2]
[400958579,1767871426407,-293.32002674,0.00010059,2]
[400958580,1767871429815,-364.58793629,0.00010059,2]
[400958581,1767871429876,1484.561398,0.00010008,2]
[400958582,1767871431346,-222.38092977,0.00010059,2]
[400958583,1767871433399,-369.04126901,0.00010059,2]
[400958584,1767871436012,-162.11424412,0.00010059,2]
[400958585,1767871440474,-202.90743206,0.00010059,2]
[400958586,1767871444128,-300.0,0.00010058,2]
[400958587,1767871444151,-76.6731268,0.00010058,2]
[400958588,1767871447104,-73.3268732,0.00010058,2]
[400958589,1767871447127,-337.98567243,0.00010059,2]
[400958590,1767871449738,-176.27484938,0.00010059,2]
[400958591,1767871454016,-385.71046199,0.00010059,2]
[400958592,1767871457193,-263.10583184,0.00010059,2]
[400958593,1767871458793,-275.33135499,0.00010059,2]
[400958594,1767871460931,-354.23048015,0.00010059,2]
[400958595,1767871463095,-272.13777783,0.00010059,2]
[400958596,1767871465655,-448.15668553,0.00010059,2]
[400958597,1767871468399,-200.0,0.00010059,2]
[400958598,1767871470541,-425.33428701,0.00010059,2]
[400958599,1767871472550,-360.30191449,0.00010059,2]
[400958600,1767871476588,-396.39658514,0.00010059,2]
[400958601,1767871479034,-524.58991717,0.00010059,2]
[400958602,1767871481582,-211.30371616,0.00010059,2]
[400958603,1767871484771,-172.42187637,0.00010048,2]
[400958604,1767871487740,-168.05451932,0.00010048,2]
[400958605,1767871489712,-20.72836997,0.00010048,2]
[400958606,1767871489937,-226.45407134,0.00010059,2]
[400958607,1767871491832,-241.81785238,0.00010059,2]
[400958608,1767871493286,-167.77555432,0.00010059,2]
[400958609,1767871495258,-292.97695685,0.00010059,2]
[400958610,1767871498234,-356.31800229,0.00010059,2]
[400958611,1767871500610,-160.94997929,0.00010059,2]
[400958612,1767871503010,-389.55890701,0.00010058,2]
[400958613,1767871505144,-175.83654771,0.00010058,2]
[400958614,1767871507616,-350.83942694,0.00010058,2]
[400958615,1767871510568,-203.09776476,0.00010058,2]
[400958616,1767871513327,-80.66735358,0.00010058,2]
[400958617,1767871513353,-137.06937648,0.00010058,2]
[400958618,1767871515329,-162.93062352,0.00010058,2]
[400958619,1767871515356,-200.36661675,0.00010058,2]
[400958620,1767871517956,-99.63338325,0.00010058,2]
[400958621,1767871517980,-99.85545472,0.00010059,2]
[400958622,1767871519483,-165.54,0.00010059,2]
[400958623,1767871549801,-10000.01,0.00010059,2]
[400958624,1767871557146,-500.0,0.00010058,2]
[400958625,1767871557178,-500.0,0.00010058,2]
[400958626,1767871557210,-500.0,0.00010058,2]
[400958627,1767871557241,-500.0,0.00010058,2]
[400958628,1767871557273,-500.0,0.00010058,2]
[400958629,1767871557307,-500.0,0.00010058,2]
[400958630,1767871557341,-500.0,0.00010058,2]
[400958631,1767871557375,-500.0,0.00010058,2]
[400958632,1767871557408,-500.0,0.00010058,2]
[400958633,1767871557444,-500.0,0.00010058,2]
[400958634,1767871558469,-0.01,0.00010058,2]
[400958635,1767871571205,5534.0,0.000149,5]
[400958636,1767871595195,-300.0,0.00010057,2]
[400958637,1767871595222,-303.69807533,0.00010057,2]
[400958638,1767871595262,-499.99,0.00010058,2]
[400958639,1767871595296,-500.0,0.00010058,2]
[400958640,1767871595333,-500.0,0.00010058,2]
[400958641,1767871595367,-500.0,0.00010058,2]
[400958642,1767871595407,-500.0,0.00010058,2]
[400958643,1767871595440,-500.0,0.00010058,2]
[400958644,1767871595475,-561.80684081,0.00010058,2]
[400958645,1767871595513,-500.0,0.00010058,2]
[400958646,1767871595546,-169.02016772,0.00010058,2]
[400958647,1767871595733,-330.97983228,0.00010058,2]
[400958648,1767871597495,999.0,0.00010959,3]
[400958649,1767871604378,-500.0,0.00010058,2]
[400958650,1767871604420,-9000.01,0.00010059,2]
[400958651,1767871623834,-150.0,0.00010057,2]
[400958652,1767871623862,-300.0,0.00010057,2]
[400958653,1767871623896,-500.0,0.00010058,2]
[400958654,1767871623928,-500.0,0.00010058,2]
[400958655,1767871623960,-500.0,0.00010058,2]
[400958656,1767871623991,-500.0,0.00010058,2]
[400958657,1767871624024,-500.0,0.00010058,2]
[400958658,1767871624056,-500.0,0.00010058,2]
[400958659,1767871624094,-500.0,0.00010058,2]
[400958660,1767871624126,-500.0,0.00010058,2]
[400958661,1767871624157,-500.0,0.00010058,2]
[400958662,1767871624401,-100.01,0.00010058,2]
[400958663,1767871630951,-399.99,0.00010058,2]
[400958664,1767871630983,-500.0,0.00010058,2]
[400958665,1767871631014,-500.0,0.00010058,2]
[400958666,1767871631046,-500.0,0.00010058,2]
[400958667,1767871631079,-500.0,0.00010058,2]
[400958668,1767871631110,-500.0,0.00010058,2]
[400958669,1767871631142,-500.0,0.00010058,2]
[400958670,1767871631173,-500.0,0.00010058,2]
[400958671,1767871631204,-500.0,0.00010058,2]
[400958672,1767871631235,-500.0,0.00010058,2]
[400958673,1767871631923,-200.03,0.00010058,2]
[400958674,1767871647867,884.2853226,9.725e-05,2]
[400958675,1767871660763,-346.25813817,0.00010058,2]
[400958676,1767871660798,-500.0,0.00010058,2]
[400958677,1767871660830,-500.0,0.00010058,2]
[400958678,1767871660863,-500.0,0.00010058,2]
[400958679,1767871660896,-500.0,0.00010058,2]
[400958680,1767871660929,-500.0,0.00010058,2]
[400958681,1767871660961,-500.0,0.00010058,2]
[400958682,1767871660992,-500.0,0.00010058,2]
[400958683,1767871661024,-500.0,0.00010058,2]
[400958684,1767871661054,-500.0,0.00010058,2]
[400958685,1767871661262,-307.49372366,0.00010058,2]
[400958686,1767871668571,-192.50627634,0.00010058,2]
[400958687,1767871668606,-296.28813817,0.00010058,2]
[400958688,1767871668640,-500.0,0.00010058,2]
[400958689,1767871668673,-500.0,0.00010058,2]
[400958690,1767871668703,-500.0,0.00010058,2]
[400958691,1767871668734,-500.0,0.00010058,2]
[400958692,1767871668766,-500.0,0.00010058,2]
[400958693,1767871668799,-500.0,0.00010058,2]
[400958694,1767871668830,-500.0,0.00010058,2]
[400958695,1767871668862,-500.0,0.00010058,2]
[400958696,1767871668893,-500.0,0.00010058,2]
[400958697,1767871669112,-22.42117098,0.00010058,2]
[400958699,1767871675088,-477.57882902,0.00010058,2]
[400958700,1767871675122,-500.0,0.00010058,2]
[400958701,1767871675153,-500.0,0.00010058,2]
[400958702,1767871675230,-7044.85234196,0.00010059,2]
[400958703,1767871688459,333.28123661,0.0001,2]
[400958704,1767871694905,-231.40810775,0.00010058,2]
[400958705,1767871694951,-503.28319711,0.00010058,2]